Cogmind - Beta 16 --- EXPLORER MODE // 2026.01.01 @ 09:34:39 Player: K.K.Y. Result: Destroyed by D-53 Grenadier with Mini Grenade Launcher Performance ------------- Evolutions (0) 0 Regions Visited (4) 800 Robots Destroyed (50) 250 Value Destroyed (1160) 1160 Prototype IDs (13) 260 Alien Tech Used (0) 0 Bonus (-72) -72 TOTAL SCORE: 2398 Bonus ------- Follower Combat Kills 25 Friendly Fire -97 Cogmind --------- Core Integrity 0/250 Matter 129/300 Energy 265/265 System Corruption 0% Temperature Cool (0) Movement Treading (320) Ox2 Location -9/Recycling Parts ------- > --- POWER (1) -------- Improved Ion Engine > --- PROPULSION (2) --- Light Treads Light Treads > --- UTILITY (3) ------ Huge Storage Unit Structural Scanner V3-11A's Pendant > --- WEAPON (2) ------- Heavy Riot Gun Bore Cannon > --- INVENTORY (25) --- Light Humpback Makeshift Light Armor Plating Authchip [R/NC] Authchip [R/NC] Authchip [R/Combat] Authchip [Device] Authchip [Processor] Authchip [Armor] Multitool SUBCON Basin (Full) Peak State ------------ > --- POWER ------------ Improved Ion Engine > --- PROPULSION ------- Light Treads Light Treads > --- UTILITY ---------- Huge Storage Unit Structural Scanner V3-11A's Pendant > --- WEAPON ----------- Heavy Riot Gun Bore Cannon > --- INVENTORY -------- Light Humpback Makeshift Light Armor Plating Authchip [R/NC] Authchip [R/NC] Authchip [R/Combat] Authchip [Device] Authchip [Processor] Authchip [Armor] Multitool SUBCON Basin [Rating: 39] Favorites ----------- Power Ion Engine Engine Ion Engine Propulsion Light Treads Treads Light Treads Utility Structural Scanner Device Structural Scanner Storage Large Storage Unit Protection Makeshift Light Armor Plating Weapon Light Cannon Energy Gun Heavy Riot Gun Ballistic Cannon Light Cannon Build | -11 -10 -10 -10 -9 ------- Run | Yrd Mat Min Sub Rec Slots Evolved 1 | . 1 . . . Power . | . . . . . Propulsion . | . . . . . Utility 1 | . 1 . . . Weapon . | . . . . . Parts Attached 27 | 6 7 2 12 . Power 3 | 1 . 1 1 . Engine 3 | 1 . 1 1 . Core . | . . . . . Reactor . | . . . . . Propulsion 7 | 2 3 . 2 . Treads 7 | 2 3 . 2 . Leg . | . . . . . Wheel . | . . . . . Hover . | . . . . . Flight . | . . . . . Utility 9 | 1 2 1 5 . Device 4 | . 1 1 2 . Storage 3 | 1 1 . 1 . Processor . | . . . . . Hackware . | . . . . . Protection 2 | . . . 2 . Artifact . | . . . . . Weapon 8 | 2 2 . 4 . Energy Gun 4 | 2 . . 2 . Energy Cannon . | . . . . . Ballistic Gun . | . . . . . Ballistic Cannon 4 | . 2 . 2 . Launcher . | . . . . . Special Weapon . | . . . . . Impact Weapon . | . . . . . Slashing Weapon . | . . . . . Piercing Weapon . | . . . . . Special Melee Weapon . | . . . . . Unidentified Prototypes 1 | . . . 1 . Parts Lost 7 | . . . 7 . Power 1 | . . . 1 . Propulsion 2 | . . . 2 . Utility 1 | . . . 1 . Weapon 3 | . . . 3 . Highest Loss Streak 2 | . . . 2 . To Critical Strikes . | . . . . . Average Backups 12 | 1 7 12 13 9 Power . | . . . . . Propulsion 1 | . 1 2 1 . Utility 9 | . 4 9 10 8 Weapon 1 | . 1 1 1 . Tool/Special . | . . . . . Unused Backups 12 | . . . 4 8 Power . | . . . . . Propulsion . | . . . . . Utility 10 | . . . 3 7 Weapon 1 | . . . 1 . Tool/Special 1 | . . . . 1 Average Slot Usage (%) 83 | . 81 99 80 100 Engine 9 | . 11 12 7 12 Treads 18 | . 22 25 16 25 Device 16 | . 10 24 16 25 Storage 12 | . 12 12 12 12 Protection 2 | . . . 3 . Energy Gun 4 | . 5 . 4 12 Ballistic Cannon 19 | . 18 25 18 12 Peak Build Rating 39 | 6 10 11 39 39 Average Rating 15 | 4 7 10 18 39 On Entrance 13 | . 6 10 11 39 Avg Prop Armor Cover (%) . | . . . . . Naked Turns . | . . . . . Heaviest Build 102 | 19 32 33 102 102 Greatest Support 40 | 40 40 40 40 40 Greatest Overweight (x) 12 | 1 10 . 12 2 Average Overweight (x) 1 | . . . 1 2 Largest Inventory Capacity 25 | 10 15 15 25 25 Average Capacity 15 | 8 13 15 16 25 Most Carried 25 | 5 15 14 25 25 Average Carried 13 | 1 7 12 15 25 Final Capacity 25 | 10 15 15 25 25 Final Carried 25 | 2 13 13 25 25 Class Distribution -------------------- 100% | Hacker-Mutant Dominant Class ---------------- Hacker-Mutant | -10/Materials Hacker-Mutant | -10/Mines Hacker-Mutant | -10/Subcaves Hacker-Mutant | -9/Recycling Resources | -11 -10 -10 -10 -9 ----------- Run | Yrd Mat Min Sub Rec Matter Collected 1730 | 260 316 83 1071 . Remotely . | . . . . . Salvage Created 1491 | 102 557 275 557 . Parts 100 | 6 42 15 37 . Haulers Intercepted 2 | . 2 . . . Recyclers Shooed 1 | . 1 . . . Parts Field Recycled . | . . . . . Retrieved Matter . | . . . . . Parts Self-Destructed . | . . . . . Prevented . | . . . . . Parts Restored . | . . . . . Kills | -11 -10 -10 -10 -9 ------- Run | Yrd Mat Min Sub Rec Combat Hostiles Destroyed 29 | . 8 . 21 . Guns 5 | . 4 . 1 . Cannons 24 | . 4 . 20 . Classes Destroyed 12 | 2 5 1 4 . Worker 1 | . . 1 . . Builder 4 | . 4 . . . Tunneler 4 | 1 . 3 . . Hauler 2 | . 2 . . . Recycler 5 | 1 1 3 . . Turret 2 | . . . 2 . Watcher 3 | . 3 . . . Swarmer 6 | . 2 . 4 . Grunt 7 | . 6 . 1 . Sentry 1 | . . . 1 . Artisan 2 | . . . 2 . Subdweller 15 | . . . 15 . Best Kill Streak 6 | 1 4 2 6 . Combat Bots Only 4 | . 2 . 4 . Max Kills in Single Turn 2 | 1 2 2 1 . Gunslinging . | . . . . . Exploded . | . . . . . Melee . | . . . . . Uniques/NPCs Destroyed . | . . . . . Combat | -11 -10 -10 -10 -9 -------- Run | Yrd Mat Min Sub Rec Hostile Shots Fired 146 | . 21 . 125 . Missed 37 | . 6 . 31 . Hits 109 | . 15 . 94 . Projectile 109 | . 15 . 94 . AOE 6 | . . . 4 2 Damage Taken 1295 | . 110 . 1128 57 Core 275 | . 7 . 237 31 Absorbed by Shields . | . . . . . Ignored by Resistances 787 | . 70 . 685 32 Core Remaining (%) 100 | 100 . . . . Volleys Fired 182 | 3 33 8 138 . Largest 2 | 2 2 2 2 . Hottest 108 | 80 80 60 108 . Shots Fired 327 | 6 65 16 240 . Gun 63 | 6 31 . 26 . Cannon 264 | . 34 16 214 . Launcher . | . . . . . Special . | . . . . . Kinetic 264 | . 34 16 214 . Thermal . | . . . . . Explosive . | . . . . . Electromagnetic 63 | 6 31 . 26 . Robot Hit Streak 45 | 2 26 33 45 . Robot Miss Streak 2 | 1 1 1 2 . Penetration Max 1 | . . . 1 . Secondary Targets . | . . . . . Shots Hit Robots 191 | 4 49 12 126 . Core Hits 70 | 3 22 7 38 . Critical Kills 8 | . . . 8 . Critical Parts Destroyed 7 | . . . 7 . Critical Strikes 26 | . 2 1 23 . Destroy 19 | . . . 19 . Blast 6 | . 1 1 4 . Corrupt 1 | . 1 . . . Melee Attacks . | . . . . . Impact . | . . . . . Slashing . | . . . . . Piercing . | . . . . . Sneak Attacks . | . . . . . Combat Hostiles . | . . . . . Follow-up Attacks . | . . . . . Damage Inflicted 3330 | 48 804 227 2251 . Guns 625 | 48 343 . 234 . Cannons 2705 | . 461 227 2017 . Explosions . | . . . . . Melee . | . . . . . Ramming . | . . . . . Kinetic 2705 | . 461 227 2017 . Thermal . | . . . . . Explosive . | . . . . . Electromagnetic 625 | 48 343 . 234 . Impact . | . . . . . Slashing . | . . . . . Piercing . | . . . . . Highest Corruption . | . . . . . Average Corruption . | . . . . . Corruption Purged . | . . . . . Corruption Blocked . | . . . . . Overload Shots . | . . . . . Overflow Damage 38 | . . . 38 . Projectiles 38 | . . . 38 . Explosions . | . . . . . Melee . | . . . . . Knockbacks 31 | . 4 2 25 . Impact . | . . . . . Kinetic 31 | . 4 2 25 . Secondary . | . . . . . Self-Inflicted Damage . | . . . . . Shots . | . . . . . Rammed . | . . . . . Targets Rammed . | . . . . . Kicked . | . . . . . Crushed . | . . . . . Highest Temperature 81 | 36 81 . 36 . Average Temperature 24 | 18 27 . 16 . Received Heat Transfer 420 | . 93 . 327 . Siege Activations . | . . . . . Martial Activations . | . . . . . Shielding Activations . | . . . . . Robots Disrupted . | . . . . . Combat Hostiles . | . . . . . Robots Corrupted . | . . . . . Combat Hostiles . | . . . . . Parts Fried 2 | 1 1 . . . Impact Corruptions . | . . . . . Robots Melted . | . . . . . Combat Hostiles . | . . . . . Parts Melted . | . . . . . Heat Transferred . | . . . . . Parts Sabotaged . | . . . . . Parts Stolen . | . . . . . Parts Stripped . | . . . . . Power Chain Reactions . | . . . . . Alert | -11 -10 -10 -10 -9 ------- Run | Yrd Mat Min Sub Rec Maximum Alert Level . | . . . . . Low Security (%) 100 | 100 100 100 . 100 Level 1 . | . . . . . Level 2 . | . . . . . Level 3 . | . . . . . Level 4 . | . . . . . Level 5 . | . . . . . High Security . | . . . . . Max Security . | . . . . . Peak Influence 57 | 5 57 10 . 25 Initial . | . . . . . Average 2 | 1 4 . . 13 Influence Increases 513 | 10 253 35 190 25 Destroy 0b10 Robot/C 340 | . 160 . 160 20 Destroy 0b10 Robot/NC 100 | 10 50 35 . 5 Destroy Leader 40 | . 40 . . . Destroy Structure 3 | . 3 . . . Lose Combat Pursuer 30 | . . . 30 . Influence Decreases 488 | 10 253 35 190 . Time Decay 488 | 10 253 35 190 . Squads Dispatched . | . . . . . Investigation . | . . . . . Extermination . | . . . . . Reinforcement . | . . . . . Assault . | . . . . . Garrison . | . . . . . Intercept . | . . . . . Searches Triggered . | . . . . . Construction Impeded . | . . . . . Haulers Reinforced . | . . . . . Active Scanning Responses . | . . . . . Cargo Convoy Interrupts . | . . . . . Stealth | -11 -10 -10 -10 -9 --------- Run | Yrd Mat Min Sub Rec Distress Signals 2 | . 2 . . . Communications Jammed . | . . . . . Distress Signals . | . . . . . Times Spotted 41 | . 12 . 28 1 Peak Tracking Total 4 | . 3 . 4 1 Tactical Retreats 2 | . . . 2 . Traps | -11 -10 -10 -10 -9 ------- Run | Yrd Mat Min Sub Rec Traps Triggered 5 | . 5 . . . Indirectly . | . . . . . Trap Hack Attempts . | . . . . . Triggered . | . . . . . Disarmed . | . . . . . Reprogrammed . | . . . . . Reused . | . . . . . Traps Extracted . | . . . . . Installed . | . . . . . Triggered . | . . . . . Machines | -11 -10 -10 -10 -9 ---------- Run | Yrd Mat Min Sub Rec Machines Disabled 4 | . . . 4 . Max in Single Turn 1 | . . . 1 . Machines Repaired . | . . . . . Machines Dismantled . | . . . . . Machines Sabotaged . | . . . . . Overloaded Fab Kills . | . . . . . Hacking | -11 -10 -10 -10 -9 --------- Run | Yrd Mat Min Sub Rec Machines Accessed 5 | . 1 . 4 . Terminals . | . . . . . Fabricators . | . . . . . Repair Stations . | . . . . . Recycling Units 1 | . 1 . . . Scanalyzers . | . . . . . Garrison Access . | . . . . . Total Hacks 9 | . 1 . 8 . Successful 9 | . 1 . 8 . Failed . | . . . . . Catastrophic . | . . . . . Database Lockouts . | . . . . . Manual . | . . . . . Terminals . | . . . . . Fabricators . | . . . . . Repair Stations . | . . . . . Recycling Units 1 | . 1 . . . Scanalyzers . | . . . . . Garrison Access . | . . . . . Terminal Hacks 8 | . . . 8 . Record 5 | . . . 5 . Open Door 1 | . . . 1 . Proto ID Catalog 1 | . . . 1 . Release Object 1 | . . . 1 . Fabricator Hacks . | . . . . . Repair Station Hacks . | . . . . . Recycling Unit Hacks 1 | . 1 . . . Retrieve Components 1 | . 1 . . . Scanalyzer . | . . . . . Garrison Access Hacks . | . . . . . Unauthorized Hacks . | . . . . . Terminals . | . . . . . Fabricators . | . . . . . Repair Stations . | . . . . . Recycling Units . | . . . . . Scanalyzers . | . . . . . Garrison Access . | . . . . . Data Cores Recovered . | . . . . . Used . | . . . . . Hacking Detections . | . . . . . Full Trace Events . | . . . . . Feedback Events . | . . . . . Feedback Blocked . | . . . . . Robot Schematics Acquired . | . . . . . Robots Built . | . . . . . Authchips . | . . . . . Time . | . . . . . Total Robot Build Rating . | . . . . . Part Schematics Acquired . | . . . . . Parts Built . | . . . . . Authchips . | . . . . . Time . | . . . . . Total Part Build Rating . | . . . . . Part Studies Acquired . | . . . . . Parts Repaired . | . . . . . Time . | . . . . . Parts Recycled . | . . . . . Recycled Matter . | . . . . . Retrieved Matter . | . . . . . Retrieved Components 4 | . 4 . . . Parts Scanalyzed . | . . . . . Part Schematics Acquired . | . . . . . Parts Damaged . | . . . . . Bothacking | -11 -10 -10 -10 -9 ------------ Run | Yrd Mat Min Sub Rec Used RIF Installer . | . . . . . Robots Hacked . | . . . . . Non-combat . | . . . . . Combat . | . . . . . Robot Hacks Applied . | . . . . . Relay Couplers Released . | . . . . . Fabnet Peak Effective % . | . . . . . Robots Rewired . | . . . . . Allies Hacked . | . . . . . Hacks Repelled . | . . . . . Allies | -11 -10 -10 -10 -9 -------- Run | Yrd Mat Min Sub Rec Total Allies 1 | . . . 1 . Largest Group 1 | . . . 1 1 Highest-Rated Group 19 | . . . 19 19 Highest-Rated Ally 19 | . . . 19 19 Total Orders . | . . . . . Ally Attacks 3 | . . . . 3 Total Damage 86 | . . . . 86 Kills 1 | . . . . 1 Allies Corrupted . | . . . . . Allies Melted . | . . . . . Intel | -11 -10 -10 -10 -9 ------- Run | Yrd Mat Min Sub Rec Active Infowar (turns) 8016 | . 1282 1094 5630 10 Sensors 2023 | . . 1087 936 . Structural 8016 | . 1282 1094 5630 10 Robot Analysis Total . | . . . . . Derelict Logs Recovered 2 | . . . 2 . Drone Launches . | . . . . . Drone Recoveries . | . . . . . Exploration | -11 -10 -10 -10 -9 ------------- Run | Yrd Mat Min Sub Rec Turns Passed 8366 | 75 1403 1094 5784 10 Spaces Moved 3610 | 46 708 661 2192 3 Core 346 | 21 32 . 293 . Treads 3264 | 25 676 661 1899 3 Legs . | . . . . . Wheels . | . . . . . Hover . | . . . . . Flight . | . . . . . Fastest Speed 50 | 50 160 160 160 320 Average Speed 210 | 116 169 160 241 320 Slowest Speed 650 | 160 550 160 650 320 Overloaded Moves . | . . . . . Propulsion Burnouts . | . . . . . Robots Hopped . | . . . . . Potential Cave-ins . | . . . . . Cave-ins Triggered . | . . . . . Exploration Rate (%) 60 | 5 94 99 97 6 Regions Visited 4 Branch Regions 3 Pre-discovered Areas . | . . . . . Known Exits Taken 4 | 1 1 1 1 . Unknown Exits Taken . | . . . . . Scrap Searched 10 | . . . 10 . Spaces Dug . | . . . . . Terrain Destroyed 12 | . . . 12 . Melee . | . . . . . Projectile 12 | . . . 12 . AOE . | . . . . . Terrain Rammed . | . . . . . Walls Destroyed . | . . . . . Machines Disabled . | . . . . . Actions | -11 -10 -10 -10 -9 --------- Run | Yrd Mat Min Sub Rec Total 4048 | 61 847 682 2455 3 Wait 141 | . 54 9 78 . Move 3606 | 45 707 660 2191 3 Hop . | . . . . . Pick Up 50 | 7 27 2 14 . Fast Attach 3 | 1 1 . 1 . Attach 28 | 5 14 1 8 . Detach 5 | . 3 . 2 . Swap 14 | . 3 1 10 . Drop 19 | . 5 1 13 . Fire 182 | 3 33 8 138 . Melee . | . . . . . Ram . | . . . . . Kick . | . . . . . Crush . | . . . . . Escape Stasis . | . . . . . Rewire . | . . . . . Trap . | . . . . . Miscellaneous . | . . . . . Route ------- -11/Scrapyard -10/Materials (discovered 5 exits: *Mat x3 / *Min x2) -10/Mines (discovered 3 exits: *Mat x2 / *Sub) -10/Subcaves (discovered 3 exits: *Mat x2 / *Rec) -9/Recycling History --------- Turn | Location | Event 17 | -11/Scrapyard | Identified exit to Materials 17 | -11/Scrapyard | Discovered exit to Materials (range 14) 76 | -11/Scrapyard | Entered Materials 76 | -10/Materials | Evolved 1 slot: Utility x1 203 | -10/Materials | Identified exit to Mines 203 | -10/Materials | Discovered exit to Mines (range 3) 295 | -10/Materials | Discovered exit to Mines (range 13) 313 | -10/Materials | Build established: Hacker-Mutant 496 | -10/Materials | Identified exit to Materials 496 | -10/Materials | Discovered exit to Materials (range 16) 1038 | -10/Materials | Discovered exit to Materials (range 7) 1138 | -10/Materials | Discovered exit to Materials (range 3) 1479 | -10/Materials | Entered Mines 1591 | -10/Mines | A weapon hastily lodged in a ceiling crevice suddenly fell to the ground 1763 | -10/Mines | Discovered exit to Materials (range 5) 1876 | -10/Mines | Discovered exit to Materials (range 4) 2564 | -10/Mines | Identified exit to Subcaves 2564 | -10/Mines | Discovered exit to Subcaves (range 7) 2573 | -10/Mines | Entered Subcaves 2637 | -10/Subcaves | Disturbed a concealed Subdweller 3156 | -10/Subcaves | Disturbed a concealed Subdweller 3222 | -10/Subcaves | Visited Clippyterm 3227 | -10/Subcaves | Identified exit to Recycling 3227 | -10/Subcaves | Learned Factory trap positions 3303 | -10/Subcaves | Shifting Twisted Machinery released Flamer 3321 | -10/Subcaves | Shifting Twisted Machinery released Flamer 3610 | -10/Subcaves | Core integrity fell below 50% 5293 | -10/Subcaves | A Subdweller sparked back to life 5293 | -10/Subcaves | A Subdweller sparked back to life 5293 | -10/Subcaves | A Subdweller sparked back to life 5298 | -10/Subcaves | Core integrity fell below 20% 5336 | -10/Subcaves | Found Prototype Processor 5552 | -10/Subcaves | Identified exit to Materials 5552 | -10/Subcaves | Discovered exit to Materials (range 5) 5602 | -10/Subcaves | Learned location of 1 exit from Materials 5689 | -10/Subcaves | Visited 4L-MR0's lab 5732 | -10/Subcaves | Identified Rainbow Chip 5789 | -10/Subcaves | Found Tower Shield 6565 | -10/Subcaves | Disturbed a concealed Subdweller 7006 | -10/Subcaves | Shifting Twisted Machinery released Sub. Power Source 7014 | -10/Subcaves | Shifting Twisted Machinery released Sub. Machine Gun 7342 | -10/Subcaves | Visited triangular shrine 7358 | -10/Subcaves | Found Prototype Device 7359 | -10/Subcaves | Identified V3-11A's Pendant 7364 | -10/Subcaves | Befriended Subdweller 7531 | -10/Subcaves | Discovered exit to Materials (range 8) 7896 | -10/Subcaves | Found SUBCON Basin 8357 | -10/Subcaves | Entered Recycling 8357 | -9/Recycling | Accompanied by 1 ally 8367 | -9/Recycling | Destroyed by D-53 Grenadier with Mini Grenade Launcher Last Messages --------------- 07531_ EXIT=FOUND: MATERIALS 07534_ HV Slug penetrates Twisted Machinery. 07544_ Acquired 11 matter. 07546_ Acquired 58 matter. 07870_ Dropped Lrg. Storage Unit. 07877_ Dropped Rainbow Chip. 07878_ Dropped Tower Shield. 07880_ Dropped Battle Cannon. 07884_ Acquired Battle Cannon. 07886_ Dropped Bore Cannon. 07886_ Acquired Bore Cannon. 07895_ Dropped Battle Cannon. 07896_ Acquired SUBCON Basin. LOCATION=RECYCLING GOAL=ESCAPE 08364_ K-01 Serf destroyed. 08365_ D-53 Grenadier springs to life. 08365_ U-05 Engineer destroyed. 08365_ I-25 Savior destroyed. Map ----- +----------------------------------------------------+ | ?????????????????????????????????????????????????? | | ?????????????????????????????????????????????????? | | ?????????????????????????????????????????????????? | | ?????????????????????????????????????????????????? | | ?????????????????????????????????????????????????? | | ?????????????????????????????????????????????????? | | ?????????????????????????????????????????????????? | | ?????????????????????????????????????????????????? | | ?????????????????????????????????????????????????? | | ?????????????????????????????????????????????????? | | ?????????????????????????????????????????????????? | | ????????????????????## ##### ????????????????????? | | ????????????????????##+#####+????????????????????? | | ????????????????????## ????????????????????? | | ????????????????????## ! ?????????????????????? | | ????????????????????##| % ?????????????????????? | | ????????????????????## ??????????????????????? | | ????????????????????## ??????????????????????? | | ????????????????????## ! ??????????????????????? | | ???????????????? ?## ! ??????????????????????? | | ????????????????###?## %??????????????????????? | | ??????????########=[ # ##?????????????????? | | ??????????########=*%## ######?????????????????? | | ?????????? r ##?????????????????? | | ?????????? ##?????????????????? | | ?????????? @ ##?????????????????? | | ?????????????#+####### R ######?????????????????? | | ????????????? ###u ###?????????????????? | | ??????????????????##%! [ ??????????????????????? | | ??????????????????##! d%%= ?????????????????????? | | ??????????????????## !%! !% ?????????????????????? | | ??????????????????## rdg] ????????????????????? | | ??????????????????##r Yt = ##??????????????????? | | ??????????????????## = [%!a##??????????????????? | | ??????????????????## l + ??????????????????? | | ??????????????????#############??????????????????? | | ??????????????????#############??????????????????? | | ?????????????????????????????????????????????????? | | ?????????????????????????????????????????????????? | | ?????????????????????????????????????????????????? | | | | | | | | | | | | | | | | | | | | | +----------------------------------------------------+ Best States ------------- Heat Dissipation 25 Energy Generation 12 Energy Capacity 265 Matter Stores 300 Matter Capacity 300 Sight Range 16 Robot Scan Range 14 Terrain Scan Density 10 Armor Coverage 200 Resistance: KI 35 Resistance: TH 35 Resistance: EX 35 Resistance: EM 35 Resistance: I 35 Resistance: S 35 Resistance: P 35 Evasion (%) 50 Recoil Reduction 2 Offensive Hacking 20 Authchip Count 6 Item Schematics ----------------- None Robot Schematics ------------------ None Fabricated ------------ Nothing Repaired ---------- Nothing Studied --------- None Alien Tech Used ----------------- None Achievements -------------- None Challenges ------------ None Game ------ Seed SpikedAntimissileDrive Manual? 0 Play Time 00:22:45 Cumulative 235.1 hours Start 2026.01.01 @ 09:11:28 End 2026.01.01 @ 09:34:39 Sessions 1 Manual Loads 0 Difficulty Explorer Special Mode None Game No. 371 Rogue 0 Adventurer 0 Explorer 371 Win Type - Total 0 Types 0/0/0/0/0/0/0/0/0/0 Lore% 71 Gallery% 68 Achievement% 54 Wizard Run 0 Options --------- Layout 1 ASCII 0 Keyboard 0 Movement Mouse Keybinds 0 Fullscreen 1 Font 24/Smallcaps Map View 50x35 Zoom Use 0% Tactical HUD 1 Map Filters NONE Filters NONE Steam 1 RUN: aea85876-43fb-4efb-b3aa-b60aca3131ab